bitfinex/quotes_ETHUSD_20250131
["timestamp","ask_amount","ask_price","bid_price","bid_amount"]
[1738349677831,0.0075,3310.7,3309.9,3.02122]
[1738349678032,3.02807,3310.7,3310.1,3.02097]
[1738349678403,3.02089,3310.3,3309.1,0.9078]
[1738349678591,0.239,3310.9,3309.7,3.02138]
[1738349678788,3.02075,3310.5,3309.9,3.02121]
[1738349679434,3.02084,3310.4,3309.7,3.02138]
[1738349679836,0.239,3310.9,3309.3,3.02171]
[1738349679997,1.1207,3311.0,3310.2,3.02093]
[1738349680337,3.02038,3310.9,3310.3,3.0]
[1738349680490,1.1207,3311.0,3310.3,3.0]
[1738349680690,1.1207,3311.0,3310.5,3.0]
[1738349680891,0.8275,3311.7,3311.1,3.02008]
[1738349681119,0.8275,3311.7,3310.5,0.8866]
[1738349681120,3.25833,3312.0,3311.3,3.01989]
[1738349681301,0.239,3312.0,3311.5,3.01976]
[1738349681501,3.84673,3312.1,3310.5,0.8866]
[1738349681502,0.8275,3312.1,3311.2,3.0]
[1738349681797,3.01956,3311.8,3311.3,3.0]
[1738349682028,0.0301767,3312.6,3311.3,3.0]
[1738349682029,3.01904,3312.4,3311.3,0.602005]
[1738349682232,3.01911,3312.3,3311.7,3.0]
[1738349682568,3.25804,3312.4,3311.5,6.0197]
[1738349682768,3.01914,3312.2,3311.7,3.0]
[1738349682972,3.2752,3312.9,3312.3,3.01903]
[1738349683274,0.35142,3312.9,3312.2,3.0]
[1738349683568,3.01868,3312.7,3312.2,3.0]
[1738349683775,3.01859,3312.8,3312.1,3.01915]
[1738349683976,3.0187,3312.7,3312.2,3.0]
[1738349684130,3.01875,3312.7,3312.0,3.0]
[1738349684336,0.0075,3312.8,3311.9,3.0]
[1738349684537,3.01912,3312.3,3311.8,0.912]
[1738349684752,3.01886,3312.5,3311.8,3.912]
[1738349685073,0.0075,3312.2,3310.6,0.8229]
[1738349685375,3.01945,3311.9,3311.1,3.02008]
[1738349685579,3.01952,3311.8,3311.1,3.02008]
[1738349685800,3.01961,3311.7,3311.1,3.02008]
[1738349686071,3.01989,3311.4,3311.0,3.0]
[1738349686275,0.8398,3312.3,3311.0,0.3]
[1738349686575,3.01931,3312.1,3311.3,3.0199]
[1738349686872,3.01875,3312.7,3311.1,0.7825]
[1738349687030,3.01997,3311.3,3310.7,0.8256]
[1738349687232,3.01997,3311.3,3310.8,0.384619]
[1738349687531,3.01997,3311.3,3310.7,0.8256]
[1738349687969,3.01997,3311.3,3310.7,3.84608]
[1738349688172,3.01978,3311.5,3310.8,6.02037]
[1738349688477,3.01987,3311.4,3310.8,3.0]
[1738349688780,0.8552,3312.2,3311.4,3.0]
[1738349689081,0.238,3312.4,3311.1,3.80378]
[1738349689373,3.02015,3311.1,3310.6,0.7837]
[1738349689533,3.02005,3311.2,3310.6,3.80428]
[1738349689733,0.0075,3312.0,3310.6,1.466205]
[1738349689984,3.01987,3311.4,3310.8,3.02035]
[1738349690272,3.0197,3311.6,3311.0,3.0]
[1738349690477,3.01967,3311.7,3311.0,6.02015]
[1738349690691,0.238,3311.9,3311.5,3.01972]
[1738349690986,3.87229,3312.4,3311.7,3.01953]
[1738349691187,0.8469,3313.3,3312.2,0.8499]
[1738349691480,0.8469,3313.3,3312.5,3.01879]
[1738349691686,3.01823,3313.2,3312.2,0.8499]
[1738349691974,3.01862,3312.8,3312.3,3.0]
[1738349692175,3.02585,3313.1,3312.4,3.01893]
[1738349692346,0.005,3313.4,3312.7,3.01861]
[1738349692546,3.01824,3313.2,3312.5,3.01878]
[1738349692747,3.2863267,3313.3,3312.5,3.01878]
[1738349692948,0.238,3313.3,3312.2,0.8499]
[1738349693245,0.238,3313.3,3312.0,3.01931]
[1738349693246,3.01886,3312.6,3312.0,3.01931]
[1738349693448,3.01899,3312.4,3311.8,3.01946]
[1738349693646,3.01886,3312.6,3312.0,3.01931]
[1738349693846,3.01861,3312.8,3312.0,3.01931]
[1738349694146,3.01894,3312.5,3311.8,3.01946]
[1738349694462,3.01877,3312.6,3312.0,3.01925]
[1738349694846,3.02625,3312.7,3311.8,6.0389]
[1738349694847,3.01893,3312.5,3311.8,6.0389]
[1738349695185,3.01875,3312.7,3312.0,3.01931]
[1738349695355,3.25621,3313.3,3312.6,3.01871]
[1738349695534,0.564121,3313.2,3312.6,3.01871]
[1738349695735,3.01833,3313.1,3312.5,3.01886]
[1738349695989,0.238,3313.1,3312.4,0.8081]
[1738349696149,0.005,3313.4,3313.0,3.01839]
[1738349696351,0.005,3313.4,3313.1,0.03018106]
[1738349696545,0.005,3313.4,3312.9,6.03687]
[1738349696747,0.005,3313.4,3313.1,3.0183]
[1738349697235,0.005,3313.4,3313.3,0.8535]
[1738349697439,0.005,3313.4,3313.3,3.87163]
[1738349697736,0.005,3313.4,3313.3,0.8535]
[1738349697942,0.005,3313.4,3312.9,6.0185]
[1738349698254,0.005,3313.4,3313.3,3.01813]
[1738349698592,0.005,3313.4,3313.1,3.01831]
[1738349698881,0.005,3313.4,3312.9,3.01847]
[1738349699637,0.005,3313.4,3312.5,3.81526]
[1738349699879,3.01836,3313.1,3312.5,3.81524]
[1738349700082,3.0185,3312.9,3312.3,3.01901]
[1738349700286,3.01823,3313.2,3312.1,3.80049]
[1738349700592,3.01872,3312.7,3312.1,3.80049]
[1738349700797,3.01851,3312.9,3312.1,3.80049]
[1738349700934,0.0075,3312.6,3311.7,0.8576]
[1738349701286,3.01941,3311.9,3311.4,0.8576]
[1738349701451,3.01939,3312.0,3311.4,0.8576]
[1738349701639,3.2870767,3312.5,3311.4,0.8576]
[1738349701839,3.01965,3311.7,3311.0,3.0202]
[1738349702091,3.01958,3311.8,3311.0,3.0202]
[1738349702239,3.2569,3312.5,3311.0,3.0202]
[1738349702240,3.01893,3312.5,3311.9,3.01941]
[1738349702438,3.01916,3312.2,3311.9,0.8278]
[1738349702682,3.01899,3312.4,3311.5,3.84754]
[1738349702881,3.01915,3312.2,3311.5,3.84754]
[1738349703082,3.01899,3312.4,3311.7,3.01958]
[1738349703408,3.01942,3311.9,3311.1,3.02011]
[1738349703542,3.01942,3311.9,3311.3,3.01996]
[1738349704439,3.81095,3312.7,3311.6,0.8125]
[1738349704675,0.7922,3312.7,3312.1,3.01916]
[1738349704939,0.5575,3312.6,3311.3,14.7799]
[1738349705181,0.5575,3312.6,3311.3,8.76]
[1738349705182,3.0194,3312.0,3311.3,8.76]
[1738349705384,3.01942,3311.9,3311.3,3.01989]
[1738349705551,3.01906,3312.3,3311.6,3.01966]
[1738349705898,3.01924,3312.1,3311.3,0.682972]
[1738349706201,0.238,3312.4,3311.4,0.03019307]
[1738349706341,0.238,3312.4,3312.1,3.01917]
[1738349706546,0.005,3313.4,3312.3,0.8017]
[1738349706787,0.005,3313.4,3312.5,3.0]
[1738349706989,0.005,3313.4,3313.1,3.01829]
[1738349707184,0.005,3313.4,3313.2,3.01822]
[1738349707373,0.005,3313.4,3312.7,3.0]
[1738349707559,0.005,3313.4,3313.3,3.01813]
[1738349707895,0.005,3313.4,3313.1,0.8121]
[1738349708184,0.005,3313.4,3312.8,3.01851]
[1738349708185,0.005,3313.4,3312.8,0.03017883]
[1738349708341,0.005,3313.4,3313.2,3.01822]
[1738349708544,0.005,3313.4,3312.9,3.40415788]
[1738349708749,0.005,3313.4,3312.7,0.8272]
[1738349708975,0.005,3313.4,3312.9,3.01846]
[1738349709184,0.005,3313.4,3312.7,0.8272]
[1738349709185,0.005,3313.4,3313.3,3.01813]
[1738349709361,0.005,3313.4,3313.3,6.84383]
[1738349709561,0.005,3313.4,3312.9,3.01846]
[1738349709765,0.005,3313.4,3312.8,3.84428]
[1738349710106,0.005,3313.4,3312.8,3.8257]
[1738349710265,0.005,3313.4,3313.2,3.01814]
[1738349710451,0.005,3313.4,3313.0,3.04858843]
[1738349710656,0.005,3313.4,3313.1,3.01824]
[1738349710897,0.005,3313.4,3313.0,3.01841]
[1738349710898,0.005,3313.4,3313.0,3.01834]
[1738349712106,0.005,3313.4,3313.1,3.0183]
[1738349712256,0.005,3313.4,3313.0,3.01839]
[1738349712452,0.005,3313.4,3312.8,0.8257]
[1738349712656,0.005,3313.4,3312.9,3.01849]
[1738349712874,0.005,3313.4,3312.9,0.603708]
[1738349713070,0.005,3313.4,3313.3,3.01813]
[1738349713368,0.005,3313.4,3313.1,3.01831]
[1738349713956,0.005,3313.4,3313.3,3.01813]
[1738349714875,1e-05,3313.4,3313.3,3.79933]
[1738349715076,3.01622,3315.5,3314.8,3.01676]
[1738349715261,3.82062,3316.1,3315.1,3.01644]
[1738349715459,3.01578,3315.9,3315.2,3.01639]
[1738349715692,0.805,3316.1,3315.3,3.0163]
[1738349715893,0.805,3316.1,3315.4,0.03016148]
[1738349716059,0.805,3316.1,3315.6,3.01597]
[1738349716490,3.01532,3316.4,3315.4,3.01622]
[1738349716658,3.340752,3316.3,3315.6,3.01597]
[1738349717009,0.325332,3316.3,3315.9,3.01576]
[1738349717187,5.64496,3316.8,3315.6,3.01603]
[1738349717355,3.01531,3316.5,3315.7,3.01591]
[1738349717556,0.16764,3316.9,3315.8,0.03015551]
[1738349717760,3.18257,3316.9,3316.0,3.01567]
[1738349718022,3.0451267,3316.8,3315.8,3.01585]
[1738349718306,4.17689667,3316.7,3315.7,3.01595]
[1738349718456,0.0075,3316.5,3315.8,3.01584]
[1738349718657,0.0075,3316.5,3315.5,3.82323]
[1738349718658,3.01539,3316.4,3315.6,3.01603]
[1738349718854,3.01559,3316.1,3315.3,8.76]
[1738349719073,0.0301767,3316.0,3315.2,3.01638]
[1738349719303,3.01593,3315.8,3315.1,0.7601]
[1738349719609,3.01622,3315.4,3314.3,3.01722]
[1738349719910,3.01622,3315.4,3314.1,0.8117]
[1738349720072,3.01604,3315.6,3314.1,0.8117]
[1738349720073,0.55,3315.6,3314.1,0.8117]
[1738349720401,0.238,3315.6,3314.5,3.01704]
[1738349720554,0.238,3315.6,3314.8,3.01676]
[1738349720757,0.30457667,3315.9,3315.4,3.01621]
[1738349721075,3.01561,3316.1,3314.9,0.03016088]
[1738349721274,1.3168,3316.2,3315.3,3.01625]
[1738349721478,3.01568,3316.0,3315.4,3.01622]
[1738349721691,0.5575,3316.0,3314.8,0.7715]
[1738349721899,3.01577,3315.9,3315.1,3.01644]
[1738349722098,3.01577,3315.9,3315.1,3.01643]
[1738349722394,3.01577,3315.9,3315.3,3.01629]
[1738349722923,3.01599,3315.7,3315.0,3.01651]
[1738349723269,3.01603,3315.7,3314.9,3.01667]
[1738349723501,3.01604,3315.6,3315.0,3.01658]
[1738349723883,0.5575,3315.6,3314.6,6.01693]
[1738349724084,0.55,3315.9,3314.6,0.03016425]
[1738349724285,0.55,3315.9,3315.1,3.01642]
[1738349724286,1.0115,3315.8,3315.1,3.01642]
[1738349724599,4.02736,3315.8,3315.1,3.01642]
[1738349724811,1.0115,3315.8,3315.2,0.03016135]
[1738349724963,0.238,3315.8,3315.4,3.01616]
[1738349725325,0.238,3315.8,3315.5,3.01612]
[1738349725665,0.8192,3316.2,3315.5,3.01612]
[1738349725666,0.8192,3316.2,3315.7,3.01589]
[1738349725887,3.25281,3317.0,3316.3,3.0154]
[1738349726090,3.601005,3316.9,3316.3,3.0154]
[1738349726293,0.16764,3316.9,3316.2,0.81365129]
[1738349726496,0.16764,3316.9,3316.8,3.01495]
[1738349726692,0.16764,3316.9,3316.8,6.77535]
[1738349726907,0.16764,3316.9,3316.8,6.78285]
[1738349727090,0.16764,3316.9,3316.8,6.77535]
[1738349727719,0.16764,3316.9,3316.5,3.0152]
[1738349728088,0.16764,3316.9,3316.7,3.01498]
[1738349728394,0.97384,3316.9,3316.1,3.01558]
[1738349728605,0.97384,3316.9,3315.9,3.01574]
[1738349728606,3.01511,3316.7,3315.9,3.01574]
[1738349728945,0.301511,3316.6,3316.0,3.01564]
[1738349729145,0.16764,3316.9,3316.1,0.03015105]
[1738349729317,0.16764,3316.9,3316.4,3.01523]
[1738349729533,0.16764,3316.9,3316.8,3.01495]
[1738349729708,0.16764,3316.9,3316.8,3.79595]
[1738349730733,0.16764,3316.9,3316.8,6.79595]
[1738349730938,0.16764,3316.9,3316.8,8.078555]
[1738349731858,0.16764,3316.9,3316.8,6.79595]
[1738349732361,0.16764,3316.9,3316.8,6.8350327]
[1738349732742,0.16764,3316.9,3316.8,0.0390827]
[1738349733120,0.0075,3316.7,3315.8,3.01584]
[1738349733460,0.0075,3316.7,3315.8,3.05584]
[1738349733762,3.01519,3316.6,3316.0,3.01561]
[1738349734070,3.18251,3316.9,3316.2,3.01544]
[1738349734220,3.01497,3316.8,3316.2,3.01544]
[1738349734619,0.16764,3316.9,3316.3,3.01539]
[1738349735037,3.18256,3316.9,3316.3,3.01539]
[1738349735573,3.01526,3316.5,3315.9,3.01574]
[1738349735715,3.01526,3316.5,3316.4,0.03567851]
[1738349735912,3.01526,3316.5,3315.9,3.01574]
[1738349736117,0.238,3316.6,3316.4,0.03534989]
[1738349736359,3.25315,3316.6,3316.0,3.01567]
[1738349736561,3.25315,3316.6,3316.5,0.03562272]
[1738349736761,3.01523,3316.5,3315.9,3.01573]
[1738349736928,3.25316,3316.6,3316.0,3.01566]
[1738349737332,3.25316,3316.6,3315.8,0.04]
[1738349737333,3.01574,3316.0,3315.8,0.04]
[1738349737538,3.01554,3316.2,3315.8,0.04]
[1738349737734,3.01561,3316.1,3315.8,0.04]
[1738349738043,3.01554,3316.2,3315.8,0.04]
[1738349738257,3.01574,3316.0,3315.8,0.04]
[1738349738440,3.01577,3315.9,3315.8,0.04]
[1738349738646,3.79637,3315.9,3315.8,0.04]
[1738349738863,4.3840467,3315.9,3315.8,0.04]
[1738349739065,4.3915467,3315.9,3315.8,0.04]
[1738349739366,4.3915467,3315.9,3314.4,3.01711]
[1738349739367,3.01679,3314.8,3314.2,3.0173]
[1738349739877,3.01687,3314.7,3314.1,3.01739]
[1738349740425,3.01728,3314.3,3313.6,3.0178]
[1738349740624,0.5575,3314.8,3314.0,3.01745]
[1738349740625,3.01701,3314.6,3314.0,3.01745]
[1738349740942,3.01755,3314.0,3313.3,3.70287157]
[1738349741140,0.7978,3314.1,3313.3,3.70287157]
[1738349741141,0.7978,3314.1,3313.3,0.68478157]
[1738349741328,3.81527,3314.1,3313.3,0.68478157]
[1738349741523,3.01765,3313.9,3313.2,3.01815]
[1738349741724,3.81527,3314.1,3313.4,3.01804]
[1738349741975,0.7755,3314.5,3313.8,3.01766]
[1738349742175,0.238,3314.4,3313.8,3.01762]
[1738349742357,0.0075,3314.3,3313.6,3.01784]
[1738349742542,0.0075,3314.3,3313.7,3.04789445]
[1738349743129,0.7755,3314.5,3313.7,0.30478945]
[1738349743358,0.238,3314.4,3314.0,3.01746]
[1738349743687,0.238,3314.4,3314.1,0.03568587]
[1738349744033,0.238,3314.4,3313.8,3.01767]
[1738349744230,0.238,3314.4,3313.9,0.03579762]
[1738349744459,0.238,3314.4,3313.6,3.01783]
[1738349744630,0.238,3314.4,3313.7,0.03590939]
[1738349744830,0.238,3314.4,3314.0,3.01745]
[1738349745087,0.238,3314.7,3314.1,0.03568587]
[1738349745372,0.238,3314.8,3314.5,3.01702]
[1738349745575,0.993,3315.0,3314.6,3.01688]
[1738349745732,3.01636,3315.3,3314.6,3.01688]
[1738349745733,3.01636,3315.3,3314.6,3.05328306]
[1738349746092,0.238,3315.2,3314.6,3.05329306]
[1738349746283,0.238,3315.2,3314.8,3.01676]
[1738349746583,0.238,3315.2,3314.6,3.05329306]
[1738349746785,3.25441,3315.2,3314.6,3.01689]
[1738349746989,0.238,3315.2,3314.8,3.01675]
[1738349747487,0.7698,3315.8,3315.4,3.01622]
[1738349747820,0.7698,3315.8,3315.5,0.03552933]
[1738349747945,0.238,3315.9,3315.6,3.01602]
[1738349748143,0.238,3315.9,3315.5,0.03552933]
[1738349748406,0.238,3315.9,3315.7,0.03541769]
[1738349748700,1.0709,3316.2,3315.8,3.05121187]
[1738349748876,3.83586,3316.7,3315.9,0.03015535]
[1738349749191,0.16764,3316.9,3316.4,3.01524]
[1738349749405,0.16764,3316.9,3316.5,0.8254]
[1738349749546,0.16764,3316.9,3316.8,3.01495]
[1738349749892,0.16764,3316.9,3316.8,3.04972242]
[1738349753575,0.16764,3316.9,3316.8,0.03477242]
[1738349753787,0.16764,3316.9,3316.5,3.01522]
[1738349754018,0.16764,3316.9,3316.6,3.04998399]
[1738349754245,0.16764,3316.9,3316.6,0.03488399]
[1738349754561,0.16764,3316.9,3316.7,3.01504]
[1738349754758,0.16764,3316.9,3316.8,3.01495]
[1738349755045,0.16764,3316.9,3316.8,3.04972242]
[1738349756407,0.16764,3316.9,3316.8,0.03477242]
[1738349756609,3.01501,3316.8,3315.9,11.7757]
[1738349756806,3.0153,3316.5,3315.8,3.01586]
[1738349756988,3.0153,3316.5,3315.9,3.05037946]
[1738349757185,3.01537,3316.4,3315.9,0.03461946]
[1738349757405,3.01541,3316.3,3315.7,3.01594]
[1738349757630,3.0153,3316.5,3315.2,0.8217]
[1738349757631,0.0075,3316.4,3315.8,0.03416081]
[1738349757794,0.0075,3316.4,3314.7,6.9178851]
[1738349757795,0.7769,3316.0,3314.7,0.8217]
[1738349758003,3.01607,3315.6,3314.8,0.03471913]
[1738349758311,3.01607,3315.6,3314.9,3.01659]
[1738349758712,3.01586,3315.8,3314.7,3.83853]
[1738349758713,3.01614,3315.5,3315.0,0.03346101]
[1738349758878,3.01637,3315.3,3315.0,0.03346101]
[1738349759232,3.01619,3315.5,3315.1,0.03337688]
[1738349759377,0.7769,3316.0,3315.5,3.01612]
[1738349759586,0.7769,3316.0,3314.7,3.0]
[1738349759587,3.79261,3316.0,3315.6,0.03309773]
[1738349759913,4.195641,3316.0,3315.4,3.01621]
[1738349760084,3.79258,3316.0,3315.7,0.03304191]
[1738349760282,3.01579,3315.9,3315.2,3.01636]
[1738349760513,3.01577,3315.9,3315.8,0.0329861]
[1738349760720,3.01596,3315.7,3314.8,3.01676]
[1738349761042,0.7769,3316.0,3315.5,3.01612]
[1738349761332,0.238,3316.1,3315.5,3.01612]
[1738349761484,0.238,3316.1,3315.6,3.01602]
[1738349761886,0.5575,3316.0,3315.0,8.76]
[1738349762113,0.8225,3315.5,3315.0,8.76]
[1738349762382,3.83863,3315.5,3314.6,3.01692]
[1738349762611,3.84911,3315.0,3314.2,3.01729]
[1738349762822,3.01683,3314.8,3314.0,3.01743]
[1738349763127,3.01683,3314.8,3314.2,3.01731]
[1738349763128,0.238,3314.7,3314.2,3.01731]
[1738349763328,0.238,3314.7,3314.3,0.03016904]
[1738349763491,0.238,3314.7,3314.3,3.01718]
[1738349763879,3.01701,3314.6,3313.8,3.01766]
[1738349764109,3.01701,3314.6,3314.0,3.01748]
[1738349764317,0.238,3314.7,3313.8,3.01766]
[1738349764318,3.25494,3314.7,3313.8,3.01766]
[1738349764622,3.25494,3314.7,3313.6,8.76]
[1738349764623,3.01709,3314.5,3313.9,3.01758]
[1738349764779,3.01672,3314.9,3314.1,3.01739]
[1738349764981,0.238,3314.8,3314.5,3.01703]
[1738349765184,0.776,3315.5,3315.2,3.01634]
[1738349765500,0.776,3316.0,3315.5,3.01613]
[1738349765809,0.238,3316.1,3315.6,0.03259217]
[1738349765976,0.238,3316.1,3315.3,0.7666]
[1738349765977,0.238,3316.1,3316.0,3.01568]
[1738349766196,0.238,3316.1,3316.0,3.68126955]
[1738349766398,0.8151,3317.2,3316.8,3.01495]
[1738349766637,0.8151,3317.2,3316.8,0.03182505]
[1738349766850,3.25243,3317.4,3316.7,3.015]
[1738349767010,3.25243,3317.4,3316.8,0.03390747]
[1738349767011,3.01451,3317.3,3316.8,0.03390747]
[1738349767198,0.8151,3317.6,3316.8,3.31984075]
[1738349767399,3.82933,3317.6,3316.8,0.33637625]
[1738349767647,3.01453,3317.3,3316.8,0.0314855]
[1738349767844,3.01453,3317.3,3316.3,11.77538]
[1738349768025,0.0301767,3317.3,3316.4,0.03169609]
[1738349768227,0.7729,3316.8,3316.0,3.0]
[1738349768553,0.16764,3316.9,3316.2,3.01544]
[1738349768843,3.18255,3316.9,3316.3,0.03175188]
[1738349769213,3.18255,3316.9,3316.3,3.04713188]
[1738349769559,0.16764,3316.9,3316.4,3.0153]
[1738349769705,0.16764,3316.9,3316.5,3.01519]
[1738349769900,0.16764,3316.9,3316.5,0.06422129]
[1738349770253,0.16764,3316.9,3316.8,3.01495]
[1738349770412,0.16764,3316.9,3316.8,3.04853254]
[1738349770598,0.16764,3316.9,3316.8,3.73876314]
[1738349771447,0.16764,3316.9,3316.8,6.73876314]
[1738349773207,0.16764,3316.9,3316.8,3.72381314]
[1738349773416,0.1676493,3320.2,3317.4,0.8138]
[1738349773650,0.1676493,3320.2,3319.3,0.7806]
[1738349773809,0.1676493,3320.2,3319.3,3.82338279]
[1738349774015,0.1676493,3320.2,3319.4,3.04197902]
[1738349774240,0.1676493,3320.2,3319.6,3.01241]
[1738349774455,0.1676493,3320.2,3319.7,3.04334027]
[1738349774614,0.1676493,3320.2,3319.8,0.60557503]
[1738349774810,0.1676493,3320.2,3319.8,3.01216]
[1738349775044,0.1676493,3320.2,3319.9,0.03347156]
[1738349775256,0.1676493,3320.2,3319.8,3.01222]
[1738349775462,0.1676493,3320.2,3319.9,0.04417]
[1738349775645,0.1676493,3320.2,3319.8,3.01222]
[1738349775955,0.1676493,3320.2,3320.0,3.01203]
[1738349776163,0.1676493,3320.2,3319.5,3.04257692]
[1738349776375,0.1676493,3320.2,3320.1,0.03598939]
[1738349776522,0.1676493,3320.2,3319.6,3.0124]
[1738349776721,3.01212,3320.0,3319.2,3.01268]
[1738349776921,3.77597,3320.1,3319.1,3.01286]
[1738349777222,3.77597,3320.1,3319.3,3.01265]
[1738349777822,0.1676493,3320.2,3319.4,0.7627]
[1738349778021,0.1676493,3320.2,3319.9,3.01205]
[1738349778461,0.1676493,3320.2,3320.0,3.01204]
[1738349778768,0.1676493,3320.2,3320.1,3.01195]
[1738349778954,0.1676493,3320.2,3319.5,3.0125]
[1738349779138,0.1676493,3320.2,3319.8,3.01221]
[1738349779881,0.1676493,3320.2,3319.6,3.01239]
[1738349780055,0.1676493,3320.2,3319.6,3.01236]
[1738349780252,0.1676493,3320.2,3319.5,3.0]
[1738349780425,0.1676493,3320.2,3319.7,3.01231]
[1738349780624,0.1676493,3320.2,3319.8,0.04934422]
[1738349780952,0.1676493,3320.2,3319.9,3.01213]
[1738349781341,0.1676493,3320.2,3319.7,3.01231]
[1738349781522,0.1676493,3320.2,3319.5,6.01248]
[1738349781523,0.1676493,3320.2,3319.5,3.01244]
[1738349781720,0.1676493,3320.2,3319.5,3.01245]
[1738349781923,3.1795893,3320.2,3319.5,3.01245]
[1738349782118,3.1795893,3320.2,3319.3,3.01267]
[1738349782119,0.78677823,3320.2,3319.0,0.7886]
[1738349782320,3.01243,3319.6,3318.7,3.01313]
[1738349782566,3.01243,3319.6,3318.9,3.01302]
[1738349782727,3.01243,3319.6,3318.7,3.01313]
[1738349782728,3.01255,3319.5,3318.7,3.01313]
[1738349782923,3.01255,3319.5,3318.8,3.01311]
[1738349783126,3.01274,3319.3,3318.5,3.01334]
[1738349783322,3.78812,3318.9,3318.0,3.01386]
[1738349783549,3.01333,3318.6,3318.0,3.01377]
[1738349783886,3.78812,3318.9,3317.7,0.8242]
[1738349783887,3.78812,3318.9,3318.1,3.01369]
[1738349784085,3.01313,3318.8,3318.1,3.01374]
[1738349784282,3.0133,3318.7,3317.7,3.83832]
[1738349784568,3.01315,3318.8,3318.1,3.01371]
[1738349784727,3.01323,3318.7,3318.1,3.01371]
[1738349785063,3.01323,3318.7,3317.8,3.01401]
[1738349785064,3.0135,3318.4,3317.8,3.01401]
[1738349785270,3.01322,3318.7,3317.5,0.48073351]
[1738349785430,3.01342,3318.5,3317.8,3.01397]
[1738349785630,3.01334,3318.6,3317.8,0.60776426]
[1738349785868,3.01341,3318.5,3318.0,0.1]
[1738349786673,3.01341,3318.5,3318.1,0.03330127]
[1738349786896,3.01341,3318.5,3318.1,0.04995739]
[1738349787592,3.01322,3318.7,3318.1,0.04995739]
[1738349787771,0.775,3318.9,3318.3,3.01356]
[1738349787939,1.012,3318.9,3318.4,0.301356]
[1738349788271,1.012,3318.9,3318.5,3.04353038]
[1738349788442,0.7934,3319.9,3319.3,3.01263]
[1738349789369,0.7934,3319.9,3319.3,0.03012155]
[1738349789677,0.1676493,3320.2,3319.2,3.0]
[1738349789832,3.1795793,3320.2,3319.4,3.01252]
[1738349790037,0.1676493,3320.2,3319.5,3.01245]
[1738349790451,3.1795293,3320.2,3319.5,3.01245]
[1738349790658,3.01196,3320.1,3319.5,3.01245]
[1738349790861,0.1676493,3320.2,3319.7,3.0123]
[1738349791208,0.1676493,3320.2,3320.1,3.01195]
[1738349791903,0.1676493,3320.2,3319.9,3.01206]
[1738349792257,0.1676493,3320.2,3320.1,3.01195]
[1738349792456,0.1676493,3320.2,3319.9,0.8323]
[1738349792706,0.1676493,3320.2,3320.1,3.01195]
[1738349792855,0.1676493,3320.2,3320.1,3.7005907]
[1738349793810,0.1676493,3320.2,3320.1,3.73070204]
[1738349794096,0.1676493,3320.2,3320.1,3.7005907]
[1738349796485,0.1676493,3320.2,3320.1,3.73070245]
[1738349796824,0.1676493,3320.2,3320.1,3.73070249]
[1738349797813,0.1676493,3320.2,3320.1,3.7005907]
[1738349798201,9.3e-06,3320.2,3320.1,6.73820251]
[1738349798413,9.3e-06,3320.2,3320.1,6.7080907]
[1738349799887,9.3e-06,3320.2,3320.1,6.7005907]
[1738349800224,9.3e-06,3320.2,3320.1,0.6886407]
[1738349800394,9.3e-06,3320.2,3320.1,3.01195]
[1738349800925,9.3e-06,3320.2,3319.9,3.01206]
[1738349801126,9.3e-06,3320.2,3320.1,3.01195]
[1738349802130,9.3e-06,3320.2,3319.7,3.0123]
[1738349802540,9.3e-06,3320.2,3319.5,3.01248]
[1738349802738,9.3e-06,3320.2,3319.6,3.0124]
[1738349802939,9.3e-06,3320.2,3319.3,3.01267]
[1738349802940,0.7834,3320.1,3319.4,3.01254]
[1738349803116,0.7834,3320.1,3319.7,3.01231]
[1738349803300,0.7834,3320.1,3319.9,3.01206]
[1738349804245,0.7834,3320.1,3319.9,3.01207]
[1738349804408,9.3e-06,3320.2,3320.0,0.1]
[1738349807120,3.01195,3320.1,3320.0,0.1]
[1738349807321,3.6410486,3320.1,3320.0,0.1]
[1738349807518,5.0536253,3320.1,3320.0,0.1]
[1738349807717,5.0611253,3320.1,3320.0,0.1]
[1738349808212,0.8249,3320.1,3320.0,0.1]
[1738349808751,9.3e-06,3320.2,3320.1,3.01195]
[1738349810474,9.3e-06,3320.2,3320.0,0.1]
[1738349810641,0.8252,3320.1,3320.0,0.1]
[1738349811036,9.3e-06,3320.2,3320.0,0.1]
[1738349812530,9.3e-06,3320.2,3320.0,3.11202]
[1738349812931,9.3e-06,3320.2,3320.1,3.04206843]
[1738349813151,9.3e-06,3320.2,3320.1,3.01195]
[1738349818112,9.3e-06,3320.2,3320.0,0.1]
[1738349818474,9.3e-06,3320.2,3320.1,3.01195]
[1738349819978,9.3e-06,3320.2,3320.1,6.79195]
[1738349820176,9.3e-06,3320.2,3320.1,8.72920351]
[1738349820415,9.3e-06,3320.2,3320.1,8.17170351]
[1738349821273,9.3e-06,3320.2,3320.1,3.01195]
[1738349823030,9.3e-06,3320.2,3320.0,0.1]
[1738349823031,0.2370093,3320.2,3320.0,0.1]
[1738349823330,0.7991,3320.1,3320.0,0.1]
[1738349824117,0.8066,3320.1,3320.0,0.1]
[1738349824320,4.8147923,3320.1,3320.0,0.1]
[1738349824693,1.7726656,3320.1,3320.0,0.1]
[1738349825103,4.7846156,3320.1,3320.0,0.1]
[1738349826450,1.7726656,3320.1,3320.0,0.1]
[1738349828232,4.7846156,3320.1,3320.0,0.1]
[1738349828746,4.8147923,3320.1,3320.0,0.1]
[1738349829044,1.7726656,3320.1,3320.0,0.1]